fUSD/lending_fUSD_20241003
["ID","MTS","AMOUNT","RATE_DAILY","PERIOD"]
[339792103,1727987530214,-3096.26,0.00035342,120]
[339792104,1727987530224,-838.34,0.00035342,120]
[339792105,1727987530233,-500.0,0.00035342,120]
[339792106,1727987530243,-767.37,0.00035342,120]
[339792107,1727987530252,-1262.93,0.00035342,120]
[339792108,1727987530261,-500.0,0.00035342,120]
[339792109,1727987530270,-900.49,0.00035342,120]
[339792110,1727987530279,-871.88,0.00035342,120]
[339792111,1727987530289,-546.33,0.00035342,120]
[339792112,1727987530299,-1915.72,0.00035342,120]
[339792113,1727987530308,-500.0,0.00035342,120]
[339792114,1727987530317,-542.05,0.00035342,120]
[339792115,1727987530327,-1246.58,0.00035342,120]
[339792116,1727987530336,-755.2,0.00035342,120]
[339792117,1727987530345,-515.39,0.00035342,120]
[339792118,1727987530354,-1449.61,0.00035342,120]
[339792119,1727987530364,-527.96869539,0.00035342,120]
[339792120,1727987530374,-615.97,0.00035342,120]
[339792121,1727987530384,-500.0,0.00035342,120]
[339792122,1727987530394,-500.0,0.00035342,120]
[339792123,1727987530403,-828.98,0.00035342,120]
[339792124,1727987530412,-522.48,0.00035342,120]
[339792125,1727987530422,-500.0,0.00035342,120]
[339792126,1727987530431,-769.93,0.00035342,120]
[339792127,1727987530443,-1535.42,0.00035342,120]
[339792128,1727987530452,-692.01,0.00035342,120]
[339792129,1727987530461,-500.0,0.00035342,120]
[339792130,1727987530471,-500.0,0.00035342,120]
[339792131,1727987530480,-500.0,0.00035342,120]
[339792132,1727987530490,-500.0,0.00035342,120]
[339792133,1727987530499,-617.57,0.00035342,120]
[339792134,1727987530509,-1322.47,0.00035342,120]
[339792135,1727987530518,-3041.51,0.00035342,120]
[339792136,1727987530527,-678.3,0.00035342,120]
[339792137,1727987530537,-1088.33,0.00035342,120]
[339792138,1727987530546,-685.28,0.00035342,120]
[339792139,1727987530555,-809.97,0.00035342,120]
[339792140,1727987530565,-617.35,0.00035342,120]
[339792141,1727987530575,-500.0,0.00035342,120]
[339792142,1727987530585,-500.0,0.00035342,120]
[339792143,1727987530595,-504.49,0.00035342,120]
[339792144,1727987530606,-1000.0,0.00035342,120]
[339792145,1727987530616,-2582.55,0.00035342,14]
[339792146,1727987530626,-821.22,0.00035342,120]
[339792147,1727987530638,-500.0,0.00035342,120]
[339792148,1727987530647,-1192.92,0.00035342,120]
[339792149,1727987530658,-752.83,0.00035342,120]
[339792150,1727987530668,-500.0,0.00035342,120]
[339792151,1727987530679,-2036.76,0.00035342,2]
[339792152,1727987530700,-500.0,0.00035342,120]
[339792153,1727987530711,-1822.29,0.00035342,120]
[339792154,1727987530721,-696.33,0.00035342,120]
[339792155,1727987530730,-500.0,0.00035342,120]
[339792156,1727987530740,-1595.23,0.00035342,120]
[339792157,1727987530750,-500.0,0.00035342,120]
[339792158,1727987530759,-1676.96,0.00035342,120]
[339792159,1727987530768,-1430.65,0.00035342,120]
[339792160,1727987530779,-500.0,0.00035342,120]
[339792161,1727987530788,-500.0,0.00035342,120]
[339792162,1727987530798,-1022.58,0.00035342,120]
[339792163,1727987530807,-534.34,0.00035342,120]
[339792164,1727987530817,-572.51,0.00035342,120]
[339792165,1727987530827,-500.0,0.00035342,120]
[339792166,1727987530836,-743.36,0.00035342,120]
[339792167,1727987530846,-722.75,0.00035342,120]
[339792168,1727987530857,-2933.87,0.00035342,120]
[339792169,1727987530867,-891.75,0.00035342,120]
[339792170,1727987530877,-734.12,0.00035342,120]
[339792171,1727987530887,-500.0,0.00035342,120]
[339792172,1727987530898,-500.0,0.00035342,120]
[339792173,1727987530907,-830.44,0.00035342,120]
[339792174,1727987530917,-2736.92,0.00035342,120]
[339792175,1727987530926,-2840.63,0.00035342,120]
[339792176,1727987530942,-1668.6,0.00035342,120]
[339792177,1727987530953,-963.2,0.00035342,120]
[339792178,1727987530962,-3064.64,0.00035342,120]
[339792179,1727987530971,-895.53,0.00035342,120]
[339792180,1727987530980,-500.0,0.00035342,120]
[339792181,1727987530989,-603.25,0.00035342,120]
[339792182,1727987530998,-893.66,0.00035342,120]
[339792183,1727987531008,-1265.22,0.00035342,120]
[339792184,1727987531017,-648.93,0.00035342,120]
[339792185,1727987531026,-702.69,0.00035342,120]
[339792186,1727987531035,-912.75,0.00035342,120]
[339792187,1727987531045,-538.5135353,0.00035342,120]
[339792188,1727987531054,-625.95,0.00035342,120]
[339792189,1727987531064,-500.0,0.00035342,120]
[339792190,1727987531073,-500.0,0.00035342,120]
[339792191,1727987531083,-589.87,0.00035342,120]
[339792192,1727987531092,-500.0,0.00035342,120]
[339792193,1727987531101,-904.15,0.00035342,120]
[339792194,1727987531110,-809.38,0.00035342,120]
[339792195,1727987531119,-1583.67,0.00035342,120]
[339792196,1727987531129,-500.0,0.00035342,120]
[339792197,1727987531138,-500.0,0.00035342,120]
[339792198,1727987531147,-2849.48,0.00035342,120]
[339792199,1727987531157,-1559.78,0.00035342,120]
[339792200,1727987531166,-526.9,0.00035342,120]
[339792201,1727987531176,-522.66,0.00035342,120]
[339792202,1727987531188,-887.97,0.00035342,120]
[339792203,1727987531198,-608.69,0.00035342,120]
[339792204,1727987531207,-1196.23,0.00035342,120]
[339792205,1727987531217,-500.0,0.00035342,120]
[339792206,1727987531227,-1435.23,0.00035342,120]
[339792207,1727987531237,-1891.17,0.00035342,120]
[339792208,1727987531247,-734.62,0.00035342,120]
[339792209,1727987531257,-500.0,0.00035342,5]
[339792210,1727987531266,-1907.44,0.00035342,120]
[339792211,1727987531276,-954.92,0.00035342,30]
[339792212,1727987531285,-760.37,0.00035342,120]
[339792213,1727987531294,-1267.83,0.00035342,120]
[339792214,1727987531304,-500.0,0.00035342,120]
[339792215,1727987531313,-500.0,0.00035342,120]
[339792216,1727987531323,-500.0,0.00035342,120]
[339792217,1727987531332,-3152.28,0.00035342,120]
[339792218,1727987531341,-2240.67,0.00035342,120]
[339792219,1727987531350,-500.0,0.00035342,120]
[339792220,1727987531359,-692.31,0.00035342,120]
[339792221,1727987531369,-4273.85,0.00035342,2]
[339792222,1727987531378,-500.0,0.00035342,120]
[339792223,1727987531387,-566.42,0.00035342,120]
[339792224,1727987531396,-1352.94,0.00035342,120]
[339792225,1727987531405,-1375.15,0.00035342,120]
[339792226,1727987531415,-2143.59,0.00035342,120]
[339792227,1727987531423,-500.0,0.00035342,120]
[339792228,1727987531433,-500.0,0.00035342,120]
[339792229,1727987531446,-2552.25,0.00035342,120]
[339792230,1727987531455,-807.0,0.00035342,120]
[339792231,1727987531465,-500.0,0.00035342,120]
[339792232,1727987531475,-1929.43,0.00035342,120]
[339792233,1727987531484,-687.7,0.00035342,120]
[339792234,1727987531494,-500.0,0.00035342,120]
[339792235,1727987531503,-500.0,0.00035342,120]
[339792236,1727987531512,-685.66,0.00035342,120]
[339792237,1727987531521,-500.0,0.00035342,120]
[339792238,1727987531531,-500.0,0.00035342,120]
[339792239,1727987531540,-500.0,0.00035342,120]
[339792240,1727987531550,-500.0,0.00035342,120]
[339792241,1727987531559,-1124.73,0.00035342,120]
[339792242,1727987531568,-500.0,0.00035342,120]
[339792243,1727987531578,-687.49,0.00035342,120]
[339792244,1727987531588,-1267.04,0.00035342,120]
[339792245,1727987531597,-1073.96,0.00035342,120]
[339792246,1727987531606,-515.88,0.00035342,120]
[339792247,1727987531616,-924.47,0.00035342,120]
[339792248,1727987531625,-500.0,0.00035342,120]
[339792249,1727987531635,-3529.62,0.00035342,120]
[339792250,1727987531644,-500.0,0.00035342,120]
[339792251,1727987531654,-500.0,0.00035342,120]
[339792252,1727987531663,-2122.92,0.00035342,120]
[339792253,1727987531673,-1443.8,0.00035342,120]
[339792254,1727987531682,-583.93,0.00035342,120]
[339792255,1727987531700,-598.1,0.00035342,120]
[339792256,1727987531711,-1130.17,0.00035342,120]
[339792257,1727987531721,-500.0,0.00035342,120]
[339792258,1727987531730,-500.0,0.00035342,120]
[339792259,1727987531739,-500.0,0.00035342,120]
[339792260,1727987531748,-512.25,0.00035342,120]
[339792261,1727987531757,-739.66,0.00035342,120]
[339792262,1727987531766,-2221.7,0.00035342,120]
[339792263,1727987531775,-500.0,0.00035342,120]
[339792264,1727987531785,-500.0,0.00035342,120]
[339792265,1727987531795,-753.47,0.00035342,120]
[339792266,1727987531804,-878.47,0.00035342,120]
[339792267,1727987531813,-2105.23,0.00035342,120]
[339792268,1727987531823,-500.0,0.00035342,120]
[339792269,1727987531832,-1101.24,0.00035342,120]
[339792270,1727987531842,-880.23,0.00035342,120]
[339792271,1727987531852,-500.0,0.00035342,120]
[339792272,1727987531866,-594.49,0.00035342,120]
[339792273,1727987531875,-500.0,0.00035342,120]
[339792274,1727987531885,-500.0,0.00035342,120]
[339792275,1727987531895,-1746.33,0.00035342,120]
[339792276,1727987531905,-983.59,0.00035342,120]
[339792277,1727987531914,-754.45,0.00035342,120]
[339792278,1727987531923,-1535.26,0.00035342,120]
[339792279,1727987531933,-889.14,0.00035342,120]
[339792280,1727987531948,-3156.06,0.00035342,120]
[339792281,1727987531957,-640.32,0.00035342,120]
[339792282,1727987531966,-2375.19,0.00035342,120]
[339792283,1727987531975,-500.0,0.00035342,120]
[339792284,1727987531985,-500.0,0.00035342,120]
[339792285,1727987531995,-2171.15,0.00035342,120]
[339792286,1727987532004,-580.84,0.00035342,120]
[339792287,1727987532014,-652.15,0.00035342,120]
[339792288,1727987532024,-970.9,0.00035342,120]
[339792289,1727987532033,-576.98,0.00035342,120]
[339792290,1727987532042,-2322.76,0.00035342,120]
[339792291,1727987532052,-500.0,0.00035342,120]
[339792292,1727987532061,-2446.1,0.00035342,120]
[339792293,1727987532071,-500.0,0.00035342,120]
[339792294,1727987532080,-569.39,0.00035342,120]
[339792295,1727987532090,-500.0,0.00035342,120]
[339792296,1727987532099,-865.83,0.00035342,120]
[339792297,1727987532108,-500.0,0.00035342,120]
[339792298,1727987532117,-559.14,0.00035342,120]
[339792299,1727987532127,-500.0,0.00035342,120]
[339792300,1727987532136,-526.15,0.00035342,120]
[339792301,1727987532146,-500.0,0.00035342,120]
[339792302,1727987532156,-500.0,0.00035342,120]
[339792303,1727987532165,-500.0,0.00035342,120]
[339792304,1727987532175,-1022.47,0.00035342,120]
[339792305,1727987532185,-1404.02,0.00035342,120]
[339792306,1727987532199,-500.0,0.00035342,120]
[339792307,1727987532209,-641.91,0.00035342,120]
[339792308,1727987532218,-926.29,0.00035342,120]
[339792309,1727987532227,-796.9,0.00035342,120]
[339792310,1727987532237,-2021.14,0.00035342,120]
[339792311,1727987532246,-500.0,0.00035342,120]
[339792312,1727987532256,-500.0,0.00035342,120]
[339792313,1727987532265,-3420.05,0.00035342,120]
[339792314,1727987532275,-500.0,0.00035342,120]
[339792315,1727987532284,-920.88,0.00035342,120]
[339792316,1727987532294,-585.28,0.00035342,120]
[339792317,1727987532304,-1014.09,0.00035342,120]
[339792318,1727987532313,-1372.22,0.00035342,120]
[339792319,1727987532322,-501.73,0.00035342,120]
[339792320,1727987532331,-2342.53,0.00035342,120]
[339792321,1727987532341,-503.33,0.00035342,120]
[339792322,1727987532351,-500.0,0.00035342,120]
[339792323,1727987532360,-849.67,0.00035342,120]
[339792324,1727987532369,-650.32,0.00035342,120]
[339792325,1727987532379,-619.95,0.00035342,120]
[339792326,1727987532389,-4513.04,0.00035342,120]
[339792327,1727987532399,-500.0,0.00035342,120]
[339792328,1727987532410,-697.86,0.00035342,120]
[339792329,1727987532421,-1906.45,0.00035342,120]
[339792330,1727987532431,-500.0,0.00035342,120]
[339792331,1727987532442,-500.0,0.00035342,120]
[339792332,1727987532452,-500.0,0.00035342,120]
[339792333,1727987532461,-1342.8,0.00035342,120]
[339792334,1727987532470,-4469.7,0.00035342,120]
[339792335,1727987532479,-2820.31,0.00035342,120]
[339792336,1727987532488,-1714.59,0.00035342,120]
[339792337,1727987532497,-1567.97,0.00035342,120]
[339792338,1727987532506,-858.96,0.00035342,120]
[339792339,1727987532516,-1071.24,0.00035342,120]
[339792340,1727987532525,-500.0,0.00035342,120]
[339792341,1727987532534,-500.0,0.00035342,120]
[339792342,1727987532544,-1083.26,0.00035342,120]
[339792343,1727987532553,-1923.73,0.00035342,120]
[339792344,1727987532562,-3953.73,0.00035342,120]
[339792345,1727987532572,-500.0,0.00035342,120]
[339792346,1727987532581,-646.54,0.00035342,120]
[339792347,1727987532590,-500.0,0.00035342,120]
[339792348,1727987532600,-1541.86,0.00035342,120]
[339792349,1727987532609,-825.35,0.00035342,120]
[339792350,1727987532619,-2326.51,0.00035342,120]
[339792351,1727987532629,-1401.87,0.00035342,120]
[339792352,1727987532638,-8162.3,0.00035342,120]
[339792353,1727987532648,-500.0,0.00035342,120]
[339792354,1727987532658,-2202.86,0.00035342,3]
[339792355,1727987532668,-1721.6,0.00035342,120]
[339792356,1727987532677,-1824.09,0.00035342,120]
[339792357,1727987532689,-500.0,0.00035342,120]
[339792358,1727987532699,-797.25,0.00035342,120]
[339792359,1727987532708,-3694.14,0.00035342,120]
[339792360,1727987532920,-648.29,0.00035342,120]
[339792361,1727987532930,-1962.84,0.00035342,120]
[339792362,1727987532941,-770.99,0.00035342,120]
[339792363,1727987532952,-1812.58,0.00035342,120]
[339792364,1727987532962,-1106.97,0.00035342,120]
[339792365,1727987532971,-995.24,0.00035342,120]
[339792366,1727987532980,-1533.42,0.00035342,120]
[339792367,1727987532989,-500.0,0.00035342,120]
[339792368,1727987532999,-1245.45,0.00035342,120]
[339792369,1727987533008,-2708.28,0.00035342,120]
[339792370,1727987533018,-1028.68,0.00035342,120]
[339792371,1727987533027,-919.76,0.00035342,120]
[339792372,1727987533036,-500.0,0.00035342,120]
[339792373,1727987533046,-2392.87,0.00035342,120]
[339792374,1727987533055,-500.0,0.00035342,120]
[339792375,1727987533065,-1219.91,0.00035342,120]
[339792376,1727987533075,-500.0,0.00035342,120]
[339792377,1727987533084,-967.14,0.00035342,120]
[339792378,1727987533094,-1971.05,0.00035342,120]
[339792379,1727987533104,-11039.47,0.00035342,120]
[339792380,1727987533114,-647.95,0.00035342,120]
[339792381,1727987533123,-1835.01,0.00035342,120]
[339792382,1727987533133,-511.75375458,0.00035342,120]
[339792383,1727987533142,-1066.51,0.00035342,120]
[339792384,1727987533152,-2065.61,0.00035342,120]
[339792385,1727987533162,-500.0,0.00035342,120]
[339792386,1727987533171,-2041.33,0.00035342,120]
[339792387,1727987533181,-500.0,0.00035342,120]
[339792388,1727987533192,-500.0,0.00035342,120]
[339792389,1727987533203,-701.71,0.00035342,120]
[339792390,1727987533212,-512.38,0.00035342,120]
[339792391,1727987533222,-527.76,0.00035342,120]
[339792392,1727987533232,-527.0,0.00035342,120]
[339792393,1727987533242,-500.0,0.00035342,120]
[339792394,1727987533251,-1302.4,0.00035342,120]
[339792395,1727987533261,-500.0,0.00035342,120]
[339792396,1727987533271,-1041.18,0.00035342,120]
[339792397,1727987533280,-968.42,0.00035342,120]
[339792398,1727987533289,-409.72521167,0.00035342,120]
[339792399,1727987533299,-500.0,0.00035342,120]
[339792400,1727987533308,-1510.82,0.00035342,120]
[339792401,1727987533318,-2058.43,0.00035342,120]
[339792402,1727987533328,-1123.06,0.00035342,120]
[339792403,1727987533338,-606.83141164,0.00035342,120]
[339792404,1727987533347,-1635.85,0.00035342,120]
[339792405,1727987533357,-2566.99,0.00035342,120]
[339792406,1727987533367,-500.52,0.00035342,120]
[339792407,1727987533377,-1766.39,0.00035342,120]
[339792408,1727987533386,-1421.18,0.00035342,120]
[339792409,1727987533396,-2301.76,0.00035342,120]
[339792410,1727987533406,-527.67910091,0.00035342,120]
[339792411,1727987533416,-1093.77,0.00035342,120]
[339792412,1727987533425,-2041.08,0.00035342,120]
[339792413,1727987533435,-458.28782219,0.00035342,120]
[339792414,1727987533446,-1056.72,0.00035342,120]
[339792415,1727987533455,-500.0,0.00035342,120]
[339792416,1727987533464,-500.0,0.00035342,120]
[339792417,1727987533474,-575.99,0.00035342,120]
[339792418,1727987533483,-4824.18,0.00035342,120]
[339792419,1727987533492,-2539.88,0.00035342,120]
[339792420,1727987533502,-500.0,0.00035342,120]
[339792421,1727987533511,-1031.81,0.00035342,120]
[339792422,1727987533520,-1058.32,0.00035342,120]
[339792423,1727987533530,-500.0,0.00035342,120]
[339792424,1727987533539,-500.0,0.00035342,120]
[339792425,1727987533548,-2770.27,0.00035342,120]
[339792426,1727987533558,-462.72,0.00035342,120]
[339792427,1727987533567,-2126.28,0.00035342,120]
[339792428,1727987533576,-500.0,0.00035342,120]
[339792429,1727987533586,-3109.58,0.00035342,120]
[339792430,1727987533596,-500.0,0.00035342,120]
[339792431,1727987533605,-1989.39,0.00035342,120]
[339792432,1727987533615,-2838.83,0.00035342,120]
[339792433,1727987533625,-2489.9,0.00035342,120]
[339792434,1727987533634,-2454.73,0.00035342,120]
[339792435,1727987533644,-1539.86,0.00035342,120]
[339792436,1727987533654,-1548.63,0.00035342,120]
[339792437,1727987533663,-751.5,0.00035342,120]
[339792438,1727987533673,-1135.51,0.00035342,120]
[339792439,1727987533682,-500.0,0.00035342,120]
[339792440,1727987533693,-26307.75,0.00035342,120]
[339792441,1727987533703,-1359.32,0.00035342,120]
[339792442,1727987533712,-920.13,0.00035342,120]
[339792443,1727987533721,-2373.28,0.00035342,120]
[339792444,1727987533731,-723.9,0.00035342,120]
[339792445,1727987533741,-500.0,0.00035342,120]
[339792446,1727987533751,-683.05,0.00035342,120]
[339792447,1727987533760,-1328.33,0.00035342,120]
[339792448,1727987533770,-500.0,0.00035342,120]
[339792449,1727987533779,-1718.99,0.00035342,120]
[339792450,1727987533789,-500.0,0.00035342,120]
[339792451,1727987533798,-2515.59,0.00035342,120]
[339792452,1727987533808,-953.41,0.00035342,120]
[339792453,1727987533817,-876.22,0.00035342,120]
[339792454,1727987533827,-2264.01,0.00035342,120]
[339792455,1727987533836,-1281.35,0.00035342,120]
[339792456,1727987533846,-2588.02,0.00035342,120]
[339792457,1727987533855,-1057.1,0.00035342,120]
[339792458,1727987533869,-1543.66,0.00035342,120]
[339792459,1727987533879,-567.28,0.00035342,120]
[339792460,1727987533890,-1173.73,0.00035342,120]
[339792461,1727987533902,-500.0,0.00035342,120]
[339792462,1727987533911,-622.45,0.00035342,120]
[339792463,1727987533921,-831.03,0.00035342,120]
[339792464,1727987533931,-574.46,0.00035342,120]
[339792465,1727987533944,-999.57,0.00035342,120]
[339792466,1727987533955,-605.72,0.00035342,120]
[339792467,1727987533964,-500.0,0.00035342,120]
[339792468,1727987533974,-656.14,0.00035342,24]
[339792469,1727987533985,-1059.55,0.00035342,120]
[339792470,1727987533994,-500.0,0.00035342,120]
[339792471,1727987534004,-2557.98,0.00035342,120]
[339792472,1727987534014,-1114.36,0.00035342,120]
[339792473,1727987534023,-985.85,0.00035342,120]
[339792474,1727987534032,-2619.08,0.00035342,120]
[339792475,1727987534042,-2196.8,0.00035342,120]
[339792476,1727987534052,-1368.57,0.00035342,120]
[339792477,1727987534062,-534.46,0.00035342,120]
[339792478,1727987534071,-623.45,0.00035342,120]
[339792479,1727987534081,-1760.97,0.00035342,120]
[339792480,1727987534091,-4833.89,0.00035342,120]
[339792481,1727987534100,-1036.03,0.00035342,120]
[339792482,1727987534110,-613.95,0.00035342,120]
[339792483,1727987534120,-1295.57,0.00035342,120]
[339792484,1727987534129,-1437.23,0.00035342,120]
[339792485,1727987534139,-1100.59,0.00035342,120]
[339792486,1727987534149,-581.64,0.00035342,120]
[339792487,1727987534159,-500.0,0.00035342,120]
[339792488,1727987534169,-1584.05,0.00035342,120]
[339792489,1727987534179,-500.0,0.00035342,120]
[339792490,1727987534189,-1739.53,0.00035342,120]
[339792491,1727987534199,-780.59,0.00035342,120]
[339792492,1727987534208,-500.0,0.00035342,120]
[339792493,1727987534219,-10179.37,0.00035342,120]
[339792494,1727987534228,-1002.66,0.00035342,120]
[339792495,1727987534238,-567.89,0.00035342,120]
[339792496,1727987534247,-504.47,0.00035342,120]
[339792497,1727987534258,-859.91,0.00035342,120]
[339792498,1727987534268,-8270.07,0.00035342,21]
[339792499,1727987534278,-669.41,0.00035342,120]
[339792500,1727987534288,-631.12,0.00035342,120]
[339792501,1727987534297,-4586.08,0.00035342,120]
[339792502,1727987534307,-2304.02,0.00035342,120]
[339792503,1727987534318,-1138.44,0.00035342,120]
[339792504,1727987534329,-500.0,0.00035342,120]
[339792505,1727987534341,-811.67,0.00035342,120]
[339792506,1727987534350,-536.29,0.00035342,120]
[339792507,1727987534362,-994.04,0.00035342,120]
[339792508,1727987534373,-500.0,0.00035342,120]
[339792509,1727987534385,-200.03834691,0.000354,2]
[339792510,1727987534396,-25903.3982437,0.00035476,2]
[339792511,1727987534406,-1895.0686469,0.00035476,2]
[339792512,1727987534415,-1000000.0,0.000355,120]
[339792513,1727987534426,-380.037178,0.000355,7]
[339792514,1727987534439,-380.037184,0.000355,7]
[339792515,1727987534448,-151.0,0.000355,7]
[339792516,1727987534457,-200.03834684,0.00035535,2]
[339792517,1727987534466,-2251.5019805,0.00035561,7]
[339792518,1727987534475,-3007.50576663,0.00035561,7]
[339792519,1727987534485,-2899.87242423,0.00035561,7]
[339792520,1727987534495,-7042.1929199,0.00035592,2]
[339792521,1727987534505,-500.0,0.00035616,120]
[339792522,1727987534517,-1830.04,0.00035616,120]
[339792523,1727987534527,-500.0,0.00035616,120]
[339792524,1727987534538,-1465.14,0.00035616,120]
[339792525,1727987534549,-731.74,0.00035616,120]
[339792526,1727987534558,-500.0,0.00035616,120]
[339792527,1727987534568,-643.96312527,0.00035616,120]
[339792528,1727987534577,-500.0,0.00035616,120]
[339792529,1727987534587,-1375.31,0.00035616,120]
[339792530,1727987534596,-668.57,0.00035616,120]
[339792531,1727987534605,-500.0,0.00035616,120]
[339792532,1727987534617,-1062.68,0.00035616,120]
[339792533,1727987534628,-500.0,0.00035616,120]
[339792534,1727987534639,-1108.65,0.00035616,120]
[339792535,1727987534649,-1917.75,0.00035616,120]
[339792536,1727987534658,-1239.66,0.00035616,120]
[339792537,1727987534668,-749.5,0.00035616,120]
[339792538,1727987534678,-1219.3,0.00035616,120]
[339792539,1727987534690,-1706.35,0.00035616,120]
[339792540,1727987534699,-500.0,0.00035616,120]
[339792541,1727987534709,-1816.28,0.00035616,120]
[339792542,1727987534718,-608.59,0.00035616,120]
[339792543,1727987534728,-500.0,0.00035616,120]
[339792544,1727987534738,-591.95196403,0.00035616,120]
[339792545,1727987534747,-688.2,0.00035616,120]
[339792546,1727987534756,-818.32,0.00035616,120]
[339792547,1727987534765,-2173.75,0.00035616,120]
[339792548,1727987534774,-721.06,0.00035616,120]
[339792549,1727987534783,-2649.5,0.00035616,120]
[339792550,1727987534793,-500.0,0.00035616,120]
[339792551,1727987534802,-500.0,0.00035616,120]
[339792552,1727987534811,-500.0,0.00035616,120]
[339792553,1727987534820,-500.0,0.00035616,15]
[339792554,1727987534830,-952.32,0.00035616,120]
[339792555,1727987534839,-508.75,0.00035616,120]
[339792556,1727987534848,-500.0,0.00035616,120]
[339792557,1727987534861,-2782.16,0.00035616,120]
[339792558,1727987534873,-500.0,0.00035616,120]
[339792559,1727987534882,-500.0,0.00035616,120]
[339792560,1727987534892,-799.66,0.00035616,120]
[339792561,1727987534903,-500.0,0.00035616,120]
[339792562,1727987534914,-528.54,0.00035616,120]
[339792563,1727987534924,-500.0,0.00035616,120]
[339792564,1727987534933,-1116.48,0.00035616,120]
[339792565,1727987534945,-500.0,0.00035616,120]
[339792566,1727987534954,-500.0,0.00035616,120]
[339792567,1727987534964,-500.0,0.00035616,120]
[339792568,1727987534974,-500.0,0.00035616,120]
[339792569,1727987534983,-500.0,0.00035616,120]
[339792570,1727987534994,-667.6,0.00035616,120]
[339792571,1727987535004,-516.86,0.00035616,120]
[339792572,1727987535014,-577.36,0.00035616,120]
[339792573,1727987535024,-500.0,0.00035616,120]
[339792574,1727987535033,-2275.0,0.00035616,120]
[339792575,1727987535042,-1181.76,0.00035616,120]
[339792576,1727987535051,-1059.01,0.00035616,120]
[339792577,1727987535061,-500.0,0.00035616,120]
[339792578,1727987535071,-500.0,0.00035616,120]
[339792579,1727987535080,-678.32,0.00035616,120]
[339792580,1727987535090,-500.0,0.00035616,120]
[339792581,1727987535099,-908.96,0.00035616,120]
[339792582,1727987535109,-806.47,0.00035616,120]
[339792583,1727987535118,-1850.2,0.00035616,120]
[339792584,1727987535128,-500.0,0.00035616,120]
[339792585,1727987535138,-500.0,0.00035616,120]
[339792586,1727987535147,-500.0,0.00035616,120]
[339792587,1727987535156,-500.0,0.00035616,120]
[339792588,1727987535166,-532.65,0.00035616,120]
[339792589,1727987535175,-500.0,0.00035616,120]
[339792590,1727987535185,-500.0,0.00035616,120]
[339792591,1727987535197,-500.0,0.00035616,120]
[339792592,1727987535213,-951.98,0.00035616,120]
[339792593,1727987535223,-3113.1,0.00035616,120]
[339792594,1727987535232,-500.0,0.00035616,120]
[339792595,1727987535242,-952.18,0.00035616,120]
[339792596,1727987535251,-1578.27,0.00035616,120]
[339792597,1727987535261,-799.85,0.00035616,120]
[339792598,1727987535270,-500.0,0.00035616,120]
[339792599,1727987535279,-708.6,0.00035616,120]
[339792600,1727987535289,-584.82,0.00035616,120]
[339792601,1727987535298,-560.83,0.00035616,120]
[339792602,1727987535308,-610.78,0.00035616,120]